[Event "Titled Tuesday Blitz January 18 2022"]
[White "Cherniaiev, Tykhon"]
[Black "Tsydypov, Zhamsaran"]
[WhiteFideId "14182360"]
[BlackFideId "4108566"]
[WhiteElo "2609"]
[BlackElo "2928"]
[Result "0-1"]
[Round "02"]
[TimeControl "180+1"]
[Date "2022.01.18"]
[WhiteClock "0:00:09"]
[BlackClock "0:01:47"]

1. Nf3 {[%clk 0:03:00]}  Nf6 {[%clk 0:02:59]} 2. c4 {[%clk 0:03:00]}  e6 {[%clk 0:02:58]} 3. d4 {[%clk 0:03:00]}  Bb4+ {[%clk 0:02:57]} 4. Bd2 {[%clk 0:03:00]}  Be7 {[%clk 0:02:56]} 5. g3 {[%clk 0:03:00]}  O-O {[%clk 0:02:55]} 6. Bg2 {[%clk 0:03:00]}  d5 {[%clk 0:02:56]} 7. Qc2 {[%clk 0:03:00]}  c6 {[%clk 0:02:56]} 8. O-O {[%clk 0:03:00]}  b6 {[%clk 0:02:56]} 9. b3 {[%clk 0:03:00]}  Bb7 {[%clk 0:02:56]} 10. Nc3 {[%clk 0:03:00]}  Na6 {[%clk 0:02:57]} 11. a3 {[%clk 0:02:56]}  c5 {[%clk 0:02:56]} 12. Rfd1 {[%clk 0:02:48]}  dxc4 {[%clk 0:02:50]} 13. bxc4 {[%clk 0:02:49]}  cxd4 {[%clk 0:02:51]} 14. Nb5 {[%clk 0:02:49]}  Bc5 {[%clk 0:02:43]} 15. Bf4 {[%clk 0:02:33]}  Be4 {[%clk 0:02:42]} 16. Qc1 {[%clk 0:02:30]}  Qe7 {[%clk 0:02:37]} 17. Nfxd4 {[%clk 0:02:25]}  Bxg2 {[%clk 0:02:34]} 18. Kxg2 {[%clk 0:02:24]}  e5 {[%clk 0:02:34]} 19. Nf5 {[%clk 0:02:05]}  Qb7+ {[%clk 0:02:34]} 20. f3 {[%clk 0:02:06]}  exf4 {[%clk 0:02:33]} 21. Qxf4 {[%clk 0:02:06]}  Ne8 {[%clk 0:02:28]} 22. Rd5 {[%clk 0:02:02]}  Kh8 {[%clk 0:02:16]} 23. Rad1 {[%clk 0:02:01]}  Nf6 {[%clk 0:02:10]} 24. Qg5 {[%clk 0:01:27]}  Ne8 {[%clk 0:02:09]} 25. Qf4 {[%clk 0:01:10]}  Qc6 {[%clk 0:02:07]} 26. Rd8 {[%clk 0:01:02]}  Nec7 {[%clk 0:02:05]} 27. Rxa8 {[%clk 0:00:34]}  Rxa8 {[%clk 0:02:01]} 28. Qe5 {[%clk 0:00:25]}  f6 {[%clk 0:01:57]} 29. Qf4 {[%clk 0:00:22]}  Nxb5 {[%clk 0:01:55]} 30. cxb5 {[%clk 0:00:20]}  Qxb5 {[%clk 0:01:56]} 31. Rd2 {[%clk 0:00:19]}  Re8 {[%clk 0:01:53]} 32. e4 {[%clk 0:00:19]}  Qc6 {[%clk 0:01:50]} 33. Qg4 {[%clk 0:00:19]}  g6 {[%clk 0:01:47]} 34. Nh6 {[%clk 0:00:19]}  Bf8 {[%clk 0:01:47]} 35. Nf7+ {[%clk 0:00:17]}  Kg8 {[%clk 0:01:47]} 36. Nd8 {[%clk 0:00:08]}  Qc3 {[%clk 0:01:47]} 37. Qd7 {[%clk 0:00:08]}  Re7 {[%clk 0:01:44]} 38. Qd5+ {[%clk 0:00:08]}  Kg7 {[%clk 0:01:44]} 39. Rf2 {[%clk 0:00:06]}  Nc5 {[%clk 0:01:42]} 40. Nc6 {[%clk 0:00:06]}  Rd7 {[%clk 0:01:42]} 41. Qa2 {[%clk 0:00:05]}  Nd3 {[%clk 0:01:40]} 42. Rc2 {[%clk 0:00:04]}  Qxc2+ {[%clk 0:01:40]} 43. Qxc2 {[%clk 0:00:04]}  Ne1+ {[%clk 0:01:40]} 44. Kh3 {[%clk 0:00:05]}  Nxc2 {[%clk 0:01:41]} 45. e5 {[%clk 0:00:05]}  fxe5 {[%clk 0:01:41]} 46. Nxe5 {[%clk 0:00:06]}  Rc7 {[%clk 0:01:42]} 47. f4 {[%clk 0:00:06]}  Nxa3 {[%clk 0:01:42]} 48. g4 {[%clk 0:00:06]}  b5 {[%clk 0:01:42]} 49. f5 {[%clk 0:00:06]}  b4 {[%clk 0:01:43]} 50. g5 {[%clk 0:00:05]}  gxf5 {[%clk 0:01:43]} 51. Kh4 {[%clk 0:00:05]}  b3 {[%clk 0:01:44]} 52. Nd3 {[%clk 0:00:05]}  Rc3 {[%clk 0:01:42]} 53. Nb2 {[%clk 0:00:06]}  Nc4 {[%clk 0:01:43]} 54. Nxc4 {[%clk 0:00:06]}  Rxc4+ {[%clk 0:01:43]} 55. Kh5 {[%clk 0:00:07]}  Rc6 {[%clk 0:01:43]} 56. h4 {[%clk 0:00:07]}  b2 {[%clk 0:01:43]} 57. g6 {[%clk 0:00:08]}  hxg6+ {[%clk 0:01:43]} 58. Kg5 {[%clk 0:00:08]}  b1=Q {[%clk 0:01:44]} 59. h5 {[%clk 0:00:09]}  Qg1+ {[%clk 0:01:44]} 60. Kf4 {[%clk 0:00:09]}  Qg4+ {[%clk 0:01:45]} 61. Ke3 {[%clk 0:00:08]}  Rc3+ {[%clk 0:01:45]} 62. Kd2 {[%clk 0:00:09]}  Qd4+ {[%clk 0:01:45]} 63. Ke2 {[%clk 0:00:09]}  Qe3+ {[%clk 0:01:46]} 64. Kd1 {[%clk 0:00:09]}  Rc1# {[%clk 0:01:47]} 0-1


[Site "https://www.chess.com"]

[Event "Titled Tuesday Blitz January 18 2022"]
[White "Claridge-Hansen, William"]
[Black "Kalashian, David"]
[WhiteFideId "422509"]
[BlackFideId "13302418"]
[WhiteElo "2261"]
[BlackElo "2490"]
[Result "0-1"]
[Round "02"]
[TimeControl "180+1"]
[Date "2022.01.18"]
[WhiteClock "0:00:10"]
[BlackClock "0:01:36"]

1. c4 {[%clk 0:02:58]}  Nf6 {[%clk 0:03:00]} 2. g3 {[%clk 0:02:56]}  e6 {[%clk 0:02:59]} 3. Bg2 {[%clk 0:02:56]}  d5 {[%clk 0:03:00]} 4. Nf3 {[%clk 0:02:56]}  Be7 {[%clk 0:03:00]} 5. O-O {[%clk 0:02:56]}  O-O {[%clk 0:03:01]} 6. b3 {[%clk 0:02:57]}  c5 {[%clk 0:03:01]} 7. cxd5 {[%clk 0:02:56]}  exd5 {[%clk 0:03:01]} 8. d4 {[%clk 0:02:56]}  Nc6 {[%clk 0:03:02]} 9. Bb2 {[%clk 0:02:56]}  Re8 {[%clk 0:03:02]} 10. Nc3 {[%clk 0:02:50]}  Bg4 {[%clk 0:03:01]} 11. dxc5 {[%clk 0:02:45]}  Bxc5 {[%clk 0:03:01]} 12. Rc1 {[%clk 0:02:28]}  a6 {[%clk 0:02:51]} 13. h3 {[%clk 0:02:22]}  Bh5 {[%clk 0:02:47]} 14. g4 {[%clk 0:02:01]}  Bg6 {[%clk 0:02:46]} 15. g5 {[%clk 0:01:58]}  Ne4 {[%clk 0:02:45]} 16. Nxe4 {[%clk 0:01:52]}  dxe4 {[%clk 0:02:42]} 17. Rxc5 {[%clk 0:01:42]}  exf3 {[%clk 0:02:37]} 18. Bxf3 {[%clk 0:01:23]}  Qe7 {[%clk 0:02:36]} 19. Rd5 {[%clk 0:01:14]}  Rad8 {[%clk 0:02:35]} 20. Qd2 {[%clk 0:01:06]}  Rxd5 {[%clk 0:02:31]} 21. Qxd5 {[%clk 0:00:28]}  Rd8 {[%clk 0:02:31]} 22. Qc4 {[%clk 0:00:28]}  Qxg5+ {[%clk 0:02:29]} 23. Kh1 {[%clk 0:00:28]}  Ne5 {[%clk 0:02:21]} 24. Bxe5 {[%clk 0:00:17]}  Qxe5 {[%clk 0:02:22]} 25. Bxb7 {[%clk 0:00:16]}  a5 {[%clk 0:02:19]} 26. Bf3 {[%clk 0:00:16]}  h6 {[%clk 0:02:14]} 27. Rg1 {[%clk 0:00:16]}  Kh7 {[%clk 0:02:14]} 28. Qg4 {[%clk 0:00:13]}  Rd2 {[%clk 0:02:11]} 29. a3 {[%clk 0:00:13]}  Rb2 {[%clk 0:02:09]} 30. b4 {[%clk 0:00:13]}  axb4 {[%clk 0:02:09]} 31. axb4 {[%clk 0:00:14]}  Qd6 {[%clk 0:02:08]} 32. Be4 {[%clk 0:00:14]}  Rxb4 {[%clk 0:02:05]} 33. Bxg6+ {[%clk 0:00:14]}  fxg6 {[%clk 0:02:06]} 34. Qg3 {[%clk 0:00:14]}  Qf6 {[%clk 0:02:01]} 35. Rg2 {[%clk 0:00:13]}  h5 {[%clk 0:01:53]} 36. Qd3 {[%clk 0:00:07]}  Rh4 {[%clk 0:01:51]} 37. Kh2 {[%clk 0:00:07]}  Rd4 {[%clk 0:01:49]} 38. Qg3 {[%clk 0:00:06]}  h4 {[%clk 0:01:49]} 39. Qe3 {[%clk 0:00:07]}  Qd6+ {[%clk 0:01:46]} 40. Kh1 {[%clk 0:00:07]}  Qd5 {[%clk 0:01:44]} 41. Qf3 {[%clk 0:00:07]}  Rd1+ {[%clk 0:01:42]} 42. Rg1 {[%clk 0:00:06]}  Rxg1+ {[%clk 0:01:33]} 43. Kxg1 {[%clk 0:00:06]}  Qxf3 {[%clk 0:01:34]} 44. exf3 {[%clk 0:00:07]}  g5 {[%clk 0:01:34]} 45. Kf1 {[%clk 0:00:04]}  Kg6 {[%clk 0:01:35]} 46. Ke2 {[%clk 0:00:04]}  Kf5 {[%clk 0:01:35]} 47. Kd3 {[%clk 0:00:05]}  Kf4 {[%clk 0:01:35]} 48. Ke2 {[%clk 0:00:05]}  g6 {[%clk 0:01:36]} 49. Ke1 {[%clk 0:00:05]}  Kxf3 {[%clk 0:01:37]} 50. Kf1 {[%clk 0:00:06]}  g4 {[%clk 0:01:36]} 51. hxg4 {[%clk 0:00:06]}  Kxg4 {[%clk 0:01:37]} 52. Kg2 {[%clk 0:00:06]}  g5 {[%clk 0:01:37]} 53. f3+ {[%clk 0:00:06]}  Kf4 {[%clk 0:01:37]} 54. Kf2 {[%clk 0:00:06]}  h3 {[%clk 0:01:37]} 55. Kg1 {[%clk 0:00:05]}  Kxf3 {[%clk 0:01:37]} 56. Kh2 {[%clk 0:00:06]}  g4 {[%clk 0:01:38]} 57. Kg1 {[%clk 0:00:06]}  g3 {[%clk 0:01:38]} 58. Kh1 {[%clk 0:00:07]}  Ke2 {[%clk 0:01:36]} 59. Kg1 {[%clk 0:00:07]}  g2 {[%clk 0:01:36]} 60. Kh2 {[%clk 0:00:08]}  Kf2 {[%clk 0:01:36]} 61. Kxh3 {[%clk 0:00:08]}  g1=Q {[%clk 0:01:36]} 62. Kh4 {[%clk 0:00:09]}  Qg6 {[%clk 0:01:36]} 63. Kh3 {[%clk 0:00:10]}  Qg3# {[%clk 0:01:36]} 0-1


[Site "https://www.chess.com"]

[Event "Titled Tuesday Blitz January 18 2022"]
[White "Djordjevic, Vuk"]
[Black "Mickiewicz, Piotr"]
[WhiteFideId "902098"]
[BlackFideId "1114891"]
[WhiteElo "2463"]
[BlackElo "2266"]
[Result "1-0"]
[Round "02"]
[TimeControl "180+1"]
[Date "2022.01.18"]
[WhiteClock "0:00:06"]
[BlackClock "0:00:03"]

1. d4 {[%clk 0:03:00]}  e6 {[%clk 0:02:58]} 2. Bf4 {[%clk 0:03:00]}  Nf6 {[%clk 0:02:53]} 3. e3 {[%clk 0:03:00]}  b6 {[%clk 0:02:53]} 4. h3 {[%clk 0:02:58]}  Bb7 {[%clk 0:02:53]} 5. Nf3 {[%clk 0:02:59]}  Be7 {[%clk 0:02:51]} 6. c4 {[%clk 0:02:59]}  O-O {[%clk 0:02:50]} 7. Nc3 {[%clk 0:02:58]}  d6 {[%clk 0:02:49]} 8. Be2 {[%clk 0:02:57]}  Nbd7 {[%clk 0:02:48]} 9. O-O {[%clk 0:02:57]}  a6 {[%clk 0:02:47]} 10. d5 {[%clk 0:02:56]}  e5 {[%clk 0:02:46]} 11. Bh2 {[%clk 0:02:54]}  Ne8 {[%clk 0:02:44]} 12. e4 {[%clk 0:02:50]}  g6 {[%clk 0:02:43]} 13. Ne1 {[%clk 0:02:45]}  Ng7 {[%clk 0:02:42]} 14. f4 {[%clk 0:02:42]}  exf4 {[%clk 0:02:41]} 15. Bxf4 {[%clk 0:02:42]}  Bf6 {[%clk 0:02:40]} 16. Qd2 {[%clk 0:02:36]}  Qe7 {[%clk 0:02:31]} 17. Bh6 {[%clk 0:02:18]}  Nc5 {[%clk 0:02:27]} 18. Nd3 {[%clk 0:02:12]}  Rae8 {[%clk 0:01:54]} 19. Rae1 {[%clk 0:01:33]}  Bd4+ {[%clk 0:01:40]} 20. Kh1 {[%clk 0:01:32]}  f5 {[%clk 0:01:32]} 21. Bxg7 {[%clk 0:01:07]}  Qxg7 {[%clk 0:01:29]} 22. exf5 {[%clk 0:01:06]}  Bxc3 {[%clk 0:01:13]} 23. Qxc3 {[%clk 0:01:01]}  Qxc3 {[%clk 0:01:10]} 24. bxc3 {[%clk 0:01:00]}  Rxe2 {[%clk 0:00:55]} 25. Rxe2 {[%clk 0:01:01]}  Nxd3 {[%clk 0:00:55]} 26. Re7 {[%clk 0:01:00]}  Rf7 {[%clk 0:00:54]} 27. Re8+ {[%clk 0:00:47]}  Kg7 {[%clk 0:00:54]} 28. g4 {[%clk 0:00:40]}  b5 {[%clk 0:00:45]} 29. Rb8 {[%clk 0:00:33]}  Nc5 {[%clk 0:00:43]} 30. h4 {[%clk 0:00:19]}  bxc4 {[%clk 0:00:42]} 31. Kh2 {[%clk 0:00:19]}  Bxd5 {[%clk 0:00:40]} 32. Re8 {[%clk 0:00:19]}  gxf5 {[%clk 0:00:36]} 33. gxf5 {[%clk 0:00:17]}  Kf6 {[%clk 0:00:35]} 34. Kg3 {[%clk 0:00:11]}  Rg7+ {[%clk 0:00:29]} 35. Kf4 {[%clk 0:00:11]}  Nd3+ {[%clk 0:00:28]} 36. Ke3 {[%clk 0:00:11]}  c5 {[%clk 0:00:23]} 37. Rd8 {[%clk 0:00:10]}  Rg3+ {[%clk 0:00:21]} 38. Kd2 {[%clk 0:00:10]}  Ke7 {[%clk 0:00:18]} 39. Rh8 {[%clk 0:00:08]}  Rg2+ {[%clk 0:00:10]} 40. Ke3 {[%clk 0:00:08]}  Ne5 {[%clk 0:00:11]} 41. Rxh7+ {[%clk 0:00:08]}  Kf6 {[%clk 0:00:11]} 42. Rh6+ {[%clk 0:00:08]}  Ke7 {[%clk 0:00:10]} 43. f6+ {[%clk 0:00:06]}  Kd7 {[%clk 0:00:10]} 44. Rh7+ {[%clk 0:00:06]}  Bf7 {[%clk 0:00:09]} 45. h5 {[%clk 0:00:05]}  Ke6 {[%clk 0:00:09]} 46. h6 {[%clk 0:00:05]}  Rh2 {[%clk 0:00:09]} 47. Rh8 {[%clk 0:00:05]}  Rxh6 {[%clk 0:00:06]} 48. Rxh6 {[%clk 0:00:04]}  Ng4+ {[%clk 0:00:06]} 49. Kf4 {[%clk 0:00:05]}  Nxh6 {[%clk 0:00:06]} 50. Kg5 {[%clk 0:00:05]}  Ng8 {[%clk 0:00:04]} 51. Re1+ {[%clk 0:00:06]}  Kd7 {[%clk 0:00:03]} 52. Rb1 {[%clk 0:00:06]} 1-0


[Site "https://www.chess.com"]

[Event "Titled Tuesday Blitz January 18 2022"]
[White "Evdokimov, Alexander A."]
[Black "Harshavardhan G B"]
[WhiteFideId "4139275"]
[BlackFideId "25059009"]
[WhiteElo "2444"]
[BlackElo "1831"]
[Result "1-0"]
[Round "02"]
[TimeControl "180+1"]
[Date "2022.01.18"]
[WhiteClock "0:01:16"]
[BlackClock "0:01:32"]

1. Nf3 {[%clk 0:02:57]}  Nf6 {[%clk 0:02:56]} 2. g3 {[%clk 0:02:58]}  g6 {[%clk 0:02:56]} 3. Bg2 {[%clk 0:02:58]}  Bg7 {[%clk 0:02:57]} 4. O-O {[%clk 0:02:58]}  O-O {[%clk 0:02:58]} 5. c4 {[%clk 0:02:58]}  d6 {[%clk 0:02:57]} 6. Nc3 {[%clk 0:02:58]}  Nbd7 {[%clk 0:02:57]} 7. d4 {[%clk 0:02:57]}  e5 {[%clk 0:02:58]} 8. h3 {[%clk 0:02:56]}  Re8 {[%clk 0:02:58]} 9. e4 {[%clk 0:02:55]}  exd4 {[%clk 0:02:57]} 10. Nxd4 {[%clk 0:02:55]}  Nc5 {[%clk 0:02:58]} 11. Re1 {[%clk 0:02:55]}  Bd7 {[%clk 0:02:56]} 12. Rb1 {[%clk 0:02:49]}  Qc8 {[%clk 0:02:56]} 13. Kh2 {[%clk 0:02:48]}  Re5 {[%clk 0:02:56]} 14. b4 {[%clk 0:02:29]}  Na6 {[%clk 0:02:41]} 15. Nde2 {[%clk 0:02:14]}  Rh5 {[%clk 0:02:39]} 16. Nf4 {[%clk 0:02:14]}  Rh6 {[%clk 0:02:34]} 17. Ncd5 {[%clk 0:02:09]}  Kh8 {[%clk 0:02:24]} 18. Nxf6 {[%clk 0:02:00]}  Bxf6 {[%clk 0:02:25]} 19. Nd5 {[%clk 0:02:00]}  Bg4 {[%clk 0:02:20]} 20. Qd3 {[%clk 0:01:48]}  g5 {[%clk 0:02:16]} 21. Nxf6 {[%clk 0:01:30]}  Bxh3 {[%clk 0:02:15]} 22. Bb2 {[%clk 0:01:30]}  Kg7 {[%clk 0:01:30]} 23. Ng4+ {[%clk 0:01:22]}  Kf8 {[%clk 0:01:29]} 24. Nxh6 {[%clk 0:01:22]}  Bxg2 {[%clk 0:01:30]} 25. Kxg2 {[%clk 0:01:22]}  Qe6 {[%clk 0:01:31]} 26. Nf5 {[%clk 0:01:18]}  Nxb4 {[%clk 0:01:32]} 27. Qc3 {[%clk 0:01:16]} 1-0


[Site "https://www.chess.com"]

[Event "Titled Tuesday Blitz January 18 2022"]
[White "Girya, Olga"]
[Black "Willow, Jonah B"]
[WhiteFideId "4195752"]
[BlackFideId "438804"]
[WhiteElo "2275"]
[BlackElo "2261"]
[Result "1-0"]
[Round "02"]
[TimeControl "180+1"]
[Date "2022.01.18"]
[WhiteClock "0:01:38"]
[BlackClock "0:01:34"]

1. d4 {[%clk 0:03:00]}  Nf6 {[%clk 0:02:59]} 2. Nf3 {[%clk 0:03:01]}  e6 {[%clk 0:02:59]} 3. c4 {[%clk 0:03:00]}  c5 {[%clk 0:02:58]} 4. d5 {[%clk 0:03:00]}  exd5 {[%clk 0:02:59]} 5. cxd5 {[%clk 0:03:00]}  d6 {[%clk 0:03:00]} 6. e4 {[%clk 0:02:59]}  g6 {[%clk 0:02:59]} 7. Bd3 {[%clk 0:02:58]}  Bg7 {[%clk 0:02:58]} 8. O-O {[%clk 0:02:58]}  a6 {[%clk 0:02:57]} 9. h3 {[%clk 0:02:57]}  b5 {[%clk 0:02:57]} 10. a4 {[%clk 0:02:52]}  c4 {[%clk 0:02:51]} 11. Bc2 {[%clk 0:02:52]}  Bb7 {[%clk 0:02:51]} 12. axb5 {[%clk 0:02:39]}  axb5 {[%clk 0:02:52]} 13. Rxa8 {[%clk 0:02:39]}  Bxa8 {[%clk 0:02:53]} 14. Nd4 {[%clk 0:02:36]}  O-O {[%clk 0:02:52]} 15. Nxb5 {[%clk 0:02:35]}  Re8 {[%clk 0:02:51]} 16. N1c3 {[%clk 0:02:33]}  Qe7 {[%clk 0:02:28]} 17. Bf4 {[%clk 0:02:31]}  Rd8 {[%clk 0:02:25]} 18. Re1 {[%clk 0:02:29]}  Ne8 {[%clk 0:02:18]} 19. Bg3 {[%clk 0:02:14]}  Nd7 {[%clk 0:02:19]} 20. Nd4 {[%clk 0:02:04]}  Rb8 {[%clk 0:02:13]} 21. Nc6 {[%clk 0:02:00]}  Bxc6 {[%clk 0:02:12]} 22. dxc6 {[%clk 0:02:01]}  Ndf6 {[%clk 0:02:07]} 23. e5 {[%clk 0:01:55]}  dxe5 {[%clk 0:01:51]} 24. Bxe5 {[%clk 0:01:50]}  Rc8 {[%clk 0:01:52]} 25. Bxf6 {[%clk 0:01:42]}  Qxf6 {[%clk 0:01:51]} 26. Nd5 {[%clk 0:01:43]}  Qd8 {[%clk 0:01:33]} 27. Ne7+ {[%clk 0:01:38]}  Kh8 {[%clk 0:01:33]} 28. Nxc8 {[%clk 0:01:38]}  Qxc8 {[%clk 0:01:34]} 29. Qd7 {[%clk 0:01:38]} 1-0


[Site "https://www.chess.com"]

[Event "Titled Tuesday Blitz January 18 2022"]
[White "Gubajdullin, Alexei"]
[Black "Belous, Vladimir"]
[WhiteFideId "4141202"]
[BlackFideId "4174003"]
[WhiteElo "2268"]
[BlackElo "2534"]
[Result "1-0"]
[Round "02"]
[TimeControl "180+1"]
[Date "2022.01.18"]
[WhiteClock "0:00:18"]
[BlackClock "0:00:30"]

1. d4 {[%clk 0:02:54]}  c5 {[%clk 0:02:59]} 2. e3 {[%clk 0:02:53]}  g6 {[%clk 0:02:58]} 3. Nf3 {[%clk 0:02:49]}  Bg7 {[%clk 0:02:59]} 4. dxc5 {[%clk 0:02:43]}  Na6 {[%clk 0:02:57]} 5. c4 {[%clk 0:02:40]}  Nxc5 {[%clk 0:02:53]} 6. Be2 {[%clk 0:02:39]}  Nf6 {[%clk 0:02:53]} 7. O-O {[%clk 0:02:38]}  O-O {[%clk 0:02:54]} 8. Nc3 {[%clk 0:02:33]}  b6 {[%clk 0:02:54]} 9. Nd4 {[%clk 0:02:20]}  Bb7 {[%clk 0:02:54]} 10. Bf3 {[%clk 0:02:19]}  Bxf3 {[%clk 0:02:53]} 11. Qxf3 {[%clk 0:02:19]}  Rc8 {[%clk 0:02:54]} 12. b3 {[%clk 0:02:15]}  e5 {[%clk 0:02:38]} 13. Ndb5 {[%clk 0:02:12]}  a6 {[%clk 0:02:31]} 14. Nd6 {[%clk 0:02:10]}  Rc6 {[%clk 0:02:32]} 15. Nde4 {[%clk 0:01:56]}  Nfxe4 {[%clk 0:02:22]} 16. Nxe4 {[%clk 0:01:56]}  d5 {[%clk 0:02:20]} 17. Nxc5 {[%clk 0:01:54]}  e4 {[%clk 0:02:11]} 18. Nxe4 {[%clk 0:01:51]}  dxe4 {[%clk 0:02:08]} 19. Qxe4 {[%clk 0:01:50]}  Re6 {[%clk 0:02:08]} 20. Qb1 {[%clk 0:01:48]}  Bxa1 {[%clk 0:02:01]} 21. Qxa1 {[%clk 0:01:47]}  Qd3 {[%clk 0:01:59]} 22. Bb2 {[%clk 0:01:33]}  Rd8 {[%clk 0:01:22]} 23. Bh8 {[%clk 0:01:29]}  f6 {[%clk 0:01:22]} 24. Bxf6 {[%clk 0:01:28]}  Rf8 {[%clk 0:01:22]} 25. Bd4 {[%clk 0:01:22]}  h5 {[%clk 0:01:22]} 26. h3 {[%clk 0:01:21]}  Kh7 {[%clk 0:01:15]} 27. Qc1 {[%clk 0:01:18]}  Qe4 {[%clk 0:01:10]} 28. Bb2 {[%clk 0:01:16]}  Qd3 {[%clk 0:01:07]} 29. Ba1 {[%clk 0:01:16]}  Re7 {[%clk 0:01:01]} 30. Rd1 {[%clk 0:01:13]}  Qf5 {[%clk 0:00:57]} 31. Qb2 {[%clk 0:01:09]}  Ref7 {[%clk 0:00:58]} 32. Rd2 {[%clk 0:00:57]}  h4 {[%clk 0:00:58]} 33. Qd4 {[%clk 0:00:54]}  g5 {[%clk 0:00:59]} 34. Bc3 {[%clk 0:00:51]}  Kg6 {[%clk 0:00:55]} 35. Qxb6+ {[%clk 0:00:50]}  Kh5 {[%clk 0:00:56]} 36. Qd4 {[%clk 0:00:49]}  Qb1+ {[%clk 0:00:52]} 37. Kh2 {[%clk 0:00:44]}  Qf5 {[%clk 0:00:51]} 38. f3 {[%clk 0:00:42]}  Qe6 {[%clk 0:00:47]} 39. Qg4+ {[%clk 0:00:39]}  Qxg4 {[%clk 0:00:47]} 40. hxg4+ {[%clk 0:00:39]}  Kg6 {[%clk 0:00:48]} 41. Rd6+ {[%clk 0:00:38]}  Kh7 {[%clk 0:00:49]} 42. Rxa6 {[%clk 0:00:38]}  Rd7 {[%clk 0:00:49]} 43. Bd4 {[%clk 0:00:37]}  Rc8 {[%clk 0:00:46]} 44. c5 {[%clk 0:00:33]}  Rd5 {[%clk 0:00:40]} 45. c6 {[%clk 0:00:32]}  Rd6 {[%clk 0:00:39]} 46. Ra7+ {[%clk 0:00:28]}  Kg6 {[%clk 0:00:39]} 47. c7 {[%clk 0:00:27]}  Rc6 {[%clk 0:00:40]} 48. Be5 {[%clk 0:00:23]}  Re8 {[%clk 0:00:40]} 49. f4 {[%clk 0:00:22]}  gxf4 {[%clk 0:00:38]} 50. exf4 {[%clk 0:00:20]}  Rc2 {[%clk 0:00:30]} 51. Ra4 {[%clk 0:00:18]} 1-0


[Site "https://www.chess.com"]

[Event "Titled Tuesday Blitz January 18 2022"]
[White "Hardaway, Brewington"]
[Black "FGHSMN"]
[WhiteFideId "30941849"]
[WhiteElo "1768"]
[BlackElo "2756"]
[Result "1-0"]
[Round "02"]
[TimeControl "180+1"]
[Date "2022.01.18"]
[WhiteClock "0:01:27"]
[BlackClock "0:00:11"]

1. e4 {[%clk 0:03:00]}  e5 {[%clk 0:02:55]} 2. Nf3 {[%clk 0:03:00]}  Nc6 {[%clk 0:02:55]} 3. Nc3 {[%clk 0:03:00]}  Nf6 {[%clk 0:02:54]} 4. Bb5 {[%clk 0:02:56]}  Nd4 {[%clk 0:02:53]} 5. Bc4 {[%clk 0:02:55]}  c6 {[%clk 0:02:53]} 6. Nxe5 {[%clk 0:02:50]}  d5 {[%clk 0:02:52]} 7. exd5 {[%clk 0:02:49]}  Bd6 {[%clk 0:02:45]} 8. Nf3 {[%clk 0:02:42]}  Bg4 {[%clk 0:02:42]} 9. Be2 {[%clk 0:02:40]}  Bxf3 {[%clk 0:02:28]} 10. Bxf3 {[%clk 0:02:39]}  Qe7+ {[%clk 0:02:27]} 11. Kf1 {[%clk 0:02:38]}  O-O {[%clk 0:02:21]} 12. d3 {[%clk 0:02:34]}  cxd5 {[%clk 0:02:14]} 13. Nxd5 {[%clk 0:02:28]}  Nxd5 {[%clk 0:02:11]} 14. Bxd5 {[%clk 0:02:29]}  Rad8 {[%clk 0:02:06]} 15. Be3 {[%clk 0:02:25]}  Be5 {[%clk 0:01:43]} 16. Bb3 {[%clk 0:02:16]}  Nf5 {[%clk 0:01:35]} 17. Qf3 {[%clk 0:02:08]}  Bxb2 {[%clk 0:01:34]} 18. Re1 {[%clk 0:02:06]}  Qf6 {[%clk 0:01:27]} 19. g4 {[%clk 0:01:55]}  Nxe3+ {[%clk 0:01:13]} 20. Rxe3 {[%clk 0:01:54]}  Qg6 {[%clk 0:00:58]} 21. h4 {[%clk 0:01:50]}  Rd6 {[%clk 0:00:50]} 22. Qe4 {[%clk 0:01:48]}  Qh6 {[%clk 0:00:25]} 23. Qe7 {[%clk 0:01:31]}  Bd4 {[%clk 0:00:14]} 24. Qxf7+ {[%clk 0:01:29]}  Rxf7 {[%clk 0:00:11]} 25. Re8# {[%clk 0:01:27]} 1-0


[Site "https://www.chess.com"]

[Event "Titled Tuesday Blitz January 18 2022"]
[White "Isanzhulov, Arystan"]
[Black "Koziorowicz, Michal"]
[WhiteFideId "13711644"]
[BlackFideId "21809194"]
[WhiteElo "2278"]
[BlackElo "2166"]
[Result "0-1"]
[Round "02"]
[TimeControl "180+1"]
[Date "2022.01.18"]
[WhiteClock "0:00:01"]
[BlackClock "0:00:26"]

1. c4 {[%clk 0:02:53]}  g6 {[%clk 0:02:57]} 2. e4 {[%clk 0:02:50]}  c5 {[%clk 0:02:57]} 3. Nc3 {[%clk 0:02:46]}  Bg7 {[%clk 0:02:57]} 4. d3 {[%clk 0:02:47]}  Nc6 {[%clk 0:02:57]} 5. Nge2 {[%clk 0:02:47]}  e6 {[%clk 0:02:58]} 6. g3 {[%clk 0:02:47]}  Nge7 {[%clk 0:02:58]} 7. Bg2 {[%clk 0:02:48]}  O-O {[%clk 0:02:59]} 8. O-O {[%clk 0:02:48]}  a6 {[%clk 0:02:54]} 9. h3 {[%clk 0:02:47]}  Rb8 {[%clk 0:02:54]} 10. g4 {[%clk 0:02:44]}  b5 {[%clk 0:02:52]} 11. f4 {[%clk 0:02:36]}  f5 {[%clk 0:02:14]} 12. Be3 {[%clk 0:02:27]}  d6 {[%clk 0:02:13]} 13. Qd2 {[%clk 0:02:07]}  Kh8 {[%clk 0:02:10]} 14. Rad1 {[%clk 0:01:58]}  Nd4 {[%clk 0:02:08]} 15. e5 {[%clk 0:01:50]}  dxe5 {[%clk 0:02:04]} 16. fxe5 {[%clk 0:01:49]}  Bxe5 {[%clk 0:02:04]} 17. Nf4 {[%clk 0:01:35]}  g5 {[%clk 0:01:55]} 18. Nh5 {[%clk 0:01:32]}  f4 {[%clk 0:01:56]} 19. Bf2 {[%clk 0:01:32]}  f3 {[%clk 0:01:46]} 20. Bh1 {[%clk 0:00:53]}  Ng6 {[%clk 0:01:26]} 21. Rfe1 {[%clk 0:00:52]}  Bb7 {[%clk 0:01:21]} 22. Ne4 {[%clk 0:00:51]}  Bf4 {[%clk 0:01:09]} 23. Nxf4 {[%clk 0:00:40]}  Nxf4 {[%clk 0:01:10]} 24. Nxc5 {[%clk 0:00:38]}  Nxh3+ {[%clk 0:01:05]} 25. Kf1 {[%clk 0:00:35]}  Nxf2 {[%clk 0:00:32]} 26. Qxf2 {[%clk 0:00:33]}  Rf4 {[%clk 0:00:31]} 27. Nxb7 {[%clk 0:00:11]}  Rxb7 {[%clk 0:00:31]} 28. Re4 {[%clk 0:00:12]}  Rxe4 {[%clk 0:00:29]} 29. dxe4 {[%clk 0:00:12]}  e5 {[%clk 0:00:29]} 30. c5 {[%clk 0:00:07]}  Qf6 {[%clk 0:00:27]} 31. Qe3 {[%clk 0:00:01]}  Qh6 {[%clk 0:00:26]} 0-1


[Site "https://www.chess.com"]